[Event "22nd Hoogeveen Open 2018"]
[Site "Hoogeveen"]
[Date "2018.10.27"]
[Round "9"]
[White "Van der Hagen, Loek"]
[Black "Mijnheer, Peter"]
[Result "0-1"]
[ECO "C93"]
[WhiteElo "1820"]
[BlackElo "2092"]
[Annotator "NA"]
[PlyCount "124"]
[EventDate "2018.10.20"]
[EventType "swiss"]
[EventCountry "NED"]
[SourceTitle "playchess.com"]
[Source "ChessBase"]
[SourceQuality "1"]
[TimeControl "40/5400+30:1800+30"]

1. e4 {[%emt 0:00:00]} e5 {[%emt 0:00:00]} 2. Nf3 {[%emt 0:00:00]} Nc6 {[%emt 0:00:00]} 3. Bb5 {[%emt 0:00:00]} a6 {[%emt 0:00:03]} 4. Ba4 {[%emt 0:00:00]} Nf6 {[%emt 0:00:09]} 5. O-O {[%emt 0:00:00]} Be7 {[%emt 0:00:04]} 6. Re1 {[%emt 0:00:01]} b5 {[%emt 0:00:06]} 7. Bb3 {[%emt 0:00:03]} d6 {[%emt 0:00:10]} 8. c3 {[%emt 0:00:07]} O-O {[%emt 0:00:08]} 9. h3 {[%emt 0:00:05]} h6 {[%emt 0:05:28]} 10. d4 {[%emt 0:01:13]} Re8 {[%emt 0:00:37]} 11. Nbd2 {[%emt 0:01:40]} Bf8 {[%emt 0:00:45]} 12. Bc2 {[%emt 0:01:56]} Bb7 {[%emt 0:02:30]} 13. d5 {[%emt 0:02:29]} Ne7 {[%emt 0:06:52]} 14. b3 {[%emt 0:02:39] C93: Closed Ruy Lopez: Smyslov Variation} c6 {[%emt 0:00:55] LiveBook: 18 Games} 15. c4 {[%emt 0:01:08]} Nc8 {[%emt 0:06:14]} (15... a5 16. Nf1 a4 17. Rb1 axb3 18. axb3 Qc7 19. Ne3 bxc4 20. bxc4 Reb8 21. Bd2 Bc8 22. Rxb8 Qxb8 {1-0 (66) Leko,P (2678)-Morozevich,A (2675) Biel 2017}) 16. Nf1 {[%emt 0:02:50]} Nb6 {[%emt 0:03:32]} 17. Ne3 {[%emt 0:02:27] [#]} Qc7 $146 {[%emt 0:06:20]} ({Predecessor:} 17... Rc8 18. Bd2 Nfd7 19. a4 Rb8 20. Qe2 Nc8 21. Red1 bxc4 22. bxc4 Ne7 23. Rab1 Qc7 {1-0 (48) Szelag,M (2441)-Pakleza,Z (2506) Poland 2016}) 18. Bd2 {[%emt 0:03:41]} Nbd7 {[%emt 0:01:50]} 19. Bb1 {[%emt 0:09:29]} Rec8 {[%emt 0:03:20]} 20. Qc2 {[%emt 0:04:22]} bxc4 {[%emt 0:04:55]} 21. bxc4 {[%emt 0:01:13]} a5 {[%emt 0:00:14]} 22. a4 {[%emt 0:11:41]} g6 {[%emt 0:22:44]} 23. Ra3 {[%emt 0:07:59]} Bg7 $11 {[%emt 0:02:25]} 24. Nh2 {[%emt 0:04:21]} Qd8 {[%emt 0:14:35]} 25. Qd1 {[%emt 0:09:42]} h5 {[%emt 0:04:40]} 26. Nhf1 {[%emt 0:15:19]} cxd5 {[%emt 0:01:54]} 27. exd5 {[%emt 0:02:58]} Ba6 {[%emt 0:00:45]} 28. Rc3 {[%emt 0:03:44]} Nc5 {[%emt 0:03:17]} 29. Ng3 {[%emt 0:03:24]} h4 {[%emt 0:02:39]} 30. Ngf1 {[%emt 0:03:42]} Nfe4 {[%emt 0:00:35]} 31. Ra3 {[%emt 0:00:55]} Nxd2 {[%emt 0:00:23]} 32. Nxd2 {[%emt 0:00:27]} Rab8 {[%emt 0:00:02]} 33. Qg4 {[%emt 0:01:05]} Rb4 {[%emt 0:01:29]} 34. Nf3 {[%emt 0:00:53]} Rcb8 {[%emt 0:03:37]} 35. Bc2 {[%emt 0:00:56]} e4 {[%emt 0:00:21]} 36. Ng5 {[%emt 0:02:59]} Bxc4 {[%emt 0:01:17]} 37. Qxh4 {[%emt 0:00:46]} Bd3 {[%emt 0:00:13]} 38. Bxd3 {[%emt 0:01:01]} exd3 {[%emt 0:00:17]} 39. Ng4 {[%emt 0:01:02]} d2 {[%emt 0:01:49]} 40. Rd1 {[%emt 0:00:25]} Rb1 {[%emt 0:00:40]} 41. Ra1 {[%emt 0:04:38]} Rxa1 {[%emt 0:06:56]} 42. Rxa1 {[%emt 0:00:08]} Qe7 {[%emt 0:04:35]} 43. Rf1 {[%emt 0:01:51]} Qe2 {[%emt 0:06:04]} 44. Nf6+ {[%emt 0:02:43]} Kf8 {[%emt 0:00:56]} 45. Ngh7+ {[%emt 0:03:32]} Ke7 {[%emt 0:00:22]} 46. Ng8+ {[%emt 0:06:30]} Kd7 {[%emt 0:00:18]} 47. Ngf6+ {[%emt 0:00:23]} Kc7 {[%emt 0:00:23]} 48. Qd4 {[%emt 0:01:23]} Rh8 {[%emt 0:10:24]} 49. Qg4 {[%emt 0:06:23]} Qxg4 {[%emt 0:01:53]} 50. hxg4 {[%emt 0:00:05]} Rb8 {[%emt 0:00:22]} 51. Rd1 {[%emt 0:00:22]} Rb2 {[%emt 0:00:06]} 52. Ne8+ {[%emt 0:00:10]} Kb6 {[%emt 0:00:38]} 53. Nxd6 {[%emt 0:06:02]} Rc2 {[%emt 0:00:46]} 54. Kf1 {[%emt 0:01:01]} Nxa4 {[%emt 0:00:25]} 55. Ne4 {[%emt 0:00:13]} Nc3 {[%emt 0:00:23]} 56. Nxc3 {[%emt 0:00:15]} Bxc3 {[%emt 0:00:16]} 57. Ng5 {[%emt 0:00:28]} a4 {[%emt 0:01:45]} 58. Ne4 {[%emt 0:00:23]} Bb4 {[%emt 0:00:21]} 59. Ke2 {[%emt 0:00:28]} a3 {[%emt 0:00:14]} 60. Rb1 {[%emt 0:03:03]} Rb2 {[%emt 0:01:08]} 61. Ra1 {[%emt 0:00:33]} a2 {[%emt 0:00:05]} 62. d6 {[%emt 0:00:33]} Rb1 {[%emt 0:01:52]} 0-1

[Event "22nd Hoogeveen Open 2018"]
[Site "Hoogeveen"]
[Date "2018.10.27"]
[Round "9"]
[White "Achuthan, Dylan"]
[Black "De Vries, Emma"]
[Result "0-1"]
[ECO "A06"]
[WhiteElo "1751"]
[BlackElo "1905"]
[Annotator "NA"]
[PlyCount "50"]
[EventDate "2018.10.20"]
[EventType "swiss"]
[EventCountry "NED"]
[SourceTitle "playchess.com"]
[Source "ChessBase"]
[SourceQuality "1"]
[TimeControl "40/5400+30:1800+30"]

{[%evp 8,39,1,32767,32767,32767,32767,32767,32767,32767,32767,-16,-7,-148,-45,-195,-194,-203,-137,-162,-136,-125,-122,32767,32767,32767,32767,-189,-188,-210,-216,32767,-190,-216]} 1. Nf3 {[%emt 0:00:00]} Nf6 {[%emt 0:00:00]} 2. b3 {[%emt 0:00:00]} d5 {[%emt 0:00:02]} 3. Bb2 {[%emt 0:00:00]} e6 {[%emt 0:00:20]} 4. e3 {[%emt 0:00:00]} Be7 {[%emt 0:00:30] LiveBook: 203 Games} 5. Be2 {[%emt 0:01:42]} c5 {[%emt 0:01:11]} 6. O-O {[%emt 0:00:08]} O-O {[%emt 0:01:03]} 7. Ne5 {[%emt 0:01:54] A06: Réti Opening:1 Nf3 d5} (7. c4 Nc6 8. d4 dxc4 9. Bxc4 a6 10. dxc5 Bxc5 11. Nbd2 Be7 12. Nd4 Nxd4 13. Bxd4 b5 14. Be2 Bb7 15. Bf3 Bxf3 16. Nxf3 Nd5 {½-½ (16) Hernando Pertierra,J (2355)-Martin Duque,J (2376) San Sebastian 2017}) 7... Nbd7 {[%emt 0:05:42]} 8. f4 {[%emt 0:01:01]} Ne4 {[%emt 0:06:08]} 9. d3 {[%emt 0:01:34]} Nd6 {[%emt 0:00:20]} 10. c4 $146 {[%emt 0:18:04] [#]} (10. Bg4 $11) ({Predecessor:} 10. Nd2 Nf5 11. Rf3 d4 12. exd4 cxd4 13. Nxd7 Bxd7 14. Ne4 {1-0 (45) Borisek,A (1754)-Ristov,T (1937) Kranj 2008}) 10... Nf5 {[%emt 0:04:00]} ({Better is} 10... Nxe5 $1 $17 11. Bxe5 Nf5) 11. Bc1 {[%emt 0:21:25]} ({Better is} 11. Nxd7 $1 $15 Bxd7 12. Qd2) 11... Nxe5 {[%emt 0:05:53]} 12. fxe5 {[%emt 0:00:41]} Bg5 {[%emt 0:02:43]} 13. Rf3 {[%emt 0:05:52]} d4 {[%emt 0:04:02]} 14. e4 {[%emt 0:08:36]} Ne3 {[%emt 0:13:34]} 15. Bxe3 {[%emt 0:01:37]} Bxe3+ {[%emt 0:00:10]} 16. Kh1 {[%emt 0:00:14]} Qg5 {[%emt 0:00:45]} 17. Na3 {[%emt 0:01:53]} Qxe5 {[%emt 0:00:58]} 18. Qf1 {[%emt 0:02:20]} Bd7 {[%emt 0:04:21]} 19. Nc2 {[%emt 0:01:05]} Bh6 {[%emt 0:00:43]} 20. Qf2 $19 {[%emt 0:02:47]} Qg5 {[%emt 0:05:17]} 21. Rd1 {[%emt 0:02:45]} f5 {[%emt 0:03:17]} 22. Rg3 {[%emt 0:09:19]} fxe4 {[%emt 0:03:13]} 23. Qe1 {[%emt 0:02:05]} Qf4 {[%emt 0:04:50]} 24. dxe4 {[%emt 0:07:06]} Qxe4 {[%emt 0:01:15]} 25. Bf3 {[%emt 0:02:24]} Qxc2 {[%emt 0:01:28]} 0-1